fUST/lending_fUST_20241006
["ID","MTS","AMOUNT","RATE_DAILY","PERIOD"]
[339944973,1728178244507,-500.0,0.00013698,2]
[339944974,1728178244519,-500.0,0.00013698,2]
[339944975,1728178244532,-458.30709146,0.00013698,2]
[339944976,1728178244544,-546.41,0.00013698,2]
[339944977,1728178244554,-500.34678561,0.00013698,2]
[339944978,1728178244566,-500.0,0.00013698,2]
[339944979,1728178244579,-500.0,0.00013698,2]
[339944980,1728178244591,-500.0,0.00013698,2]
[339944981,1728178244604,-500.0,0.00013698,2]
[339944982,1728178244615,-500.0,0.00013698,2]
[339944983,1728178244627,-500.0,0.00013698,2]
[339944984,1728178244637,-500.0,0.00013698,2]
[339944985,1728178244647,-700.62,0.00013698,2]
[339944986,1728178244657,-500.0,0.00013698,2]
[339944987,1728178244667,-192.851251,0.00013698,2]
[339944988,1728178244677,-500.0,0.00013698,2]
[339944989,1728178244687,-159.51018359,0.00013698,2]
[339944990,1728178244697,-500.0,0.00013698,2]
[339944991,1728178244707,-500.0,0.00013698,2]
[339944992,1728178244716,-963.27,0.00013698,2]
[339944993,1728178244726,-500.0,0.00013698,2]
[339944994,1728178244736,-500.0,0.00013698,2]
[339944995,1728178244747,-500.0,0.00013698,2]
[339944996,1728178244758,-500.0,0.00013698,2]
[339944997,1728178244769,-500.0,0.00013698,2]
[339944998,1728178244780,-500.0,0.00013698,2]
[339944999,1728178244789,-500.0,0.00013698,2]
[339945000,1728178244800,-486.0445005,0.00013698,2]
[339945001,1728178244810,-530.43,0.00013698,2]
[339945002,1728178244820,-500.0,0.00013698,2]
[339945003,1728178244830,-500.0,0.00013698,2]
[339945004,1728178244840,-839.62,0.00013698,2]
[339945005,1728178244850,-1146.37,0.00013698,2]
[339945006,1728178244860,-500.0,0.00013698,2]
[339945007,1728178244870,-500.0,0.00013698,2]
[339945008,1728178244880,-500.0,0.00013698,2]
[339945009,1728178244891,-158.15802369,0.00013698,2]
[339945010,1728178244900,-500.0,0.00013698,2]
[339945011,1728178244911,-483.3673302,0.00013698,2]
[339945012,1728178244922,-500.0,0.00013698,2]
[339945013,1728178244934,-500.0,0.00013698,2]
[339945014,1728178244946,-500.0,0.00013698,2]
[339945015,1728178244956,-537.74,0.00013698,2]
[339945016,1728178244965,-935.17,0.00013698,2]
[339945017,1728178244976,-530.89,0.00013698,2]
[339945018,1728178244986,-507.16,0.00013698,2]
[339945019,1728178244997,-500.0,0.00013698,2]
[339945020,1728178245007,-500.0,0.00013698,2]
[339945021,1728178245018,-500.0,0.00013698,2]
[339945022,1728178245027,-500.0,0.00013698,2]
[339945023,1728178245037,-500.0,0.00013698,2]
[339945024,1728178245046,-575.4,0.00013698,2]
[339945025,1728178245055,-500.0,0.00013698,2]
[339945026,1728178245065,-500.0,0.00013698,2]
[339945027,1728178245074,-500.0,0.00013698,2]
[339945028,1728178245084,-500.0,0.00013698,2]
[339945029,1728178245095,-500.0,0.00013698,2]
[339945030,1728178245107,-500.0,0.00013698,2]
[339945031,1728178245116,-500.0,0.00013698,2]
[339945032,1728178245126,-500.0,0.00013698,2]
[339945033,1728178245136,-500.0,0.00013698,2]
[339945034,1728178245145,-500.0,0.00013698,2]
[339945035,1728178245155,-235.97013785,0.00013698,2]
[339945036,1728178245165,-500.0,0.00013698,2]
[339945037,1728178245176,-500.0,0.00013698,2]
[339945038,1728178245186,-500.0,0.00013698,2]
[339945039,1728178245196,-500.0,0.00013698,2]
[339945040,1728178245207,-500.0,0.00013698,2]
[339945041,1728178245217,-500.0,0.00013698,2]
[339945042,1728178245226,-507.67,0.00013698,2]
[339945043,1728178245236,-500.0,0.00013698,2]
[339945044,1728178245245,-500.0,0.00013698,2]
[339945045,1728178245256,-704.83,0.00013698,2]
[339945046,1728178245267,-722.47,0.00013698,2]
[339945048,1728178245277,-500.0,0.00013698,2]
[339945049,1728178245287,-1103.64,0.00013698,2]
[339945050,1728178245297,-500.0,0.00013698,2]
[339945051,1728178245307,-500.0,0.00013698,2]
[339945052,1728178245317,-500.0,0.00013698,2]
[339945053,1728178245327,-500.0,0.00013698,2]
[339945054,1728178245337,-500.0,0.00013698,2]
[339945055,1728178245347,-584.33,0.00013698,2]
[339945056,1728178245357,-500.0,0.00013698,2]
[339945057,1728178245366,-500.0,0.00013698,2]
[339945058,1728178245376,-845.28,0.00013698,2]
[339945059,1728178245386,-500.0,0.00013698,2]
[339945060,1728178245397,-500.0,0.00013698,2]
[339945061,1728178245407,-500.0,0.00013698,2]
[339945062,1728178245417,-500.0,0.00013698,2]
[339945063,1728178245427,-686.58,0.00013698,2]
[339945064,1728178245437,-500.0,0.00013698,2]
[339945065,1728178245446,-642.84810241,0.00013698,2]
[339945066,1728178245456,-517.49,0.00013698,2]
[339945067,1728178245466,-500.0,0.00013698,2]
[339945068,1728178245476,-620.5,0.00013698,2]
[339945069,1728178245486,-500.0,0.00013698,2]
[339945070,1728178245495,-500.0,0.00013698,2]
[339945071,1728178245506,-500.0,0.00013698,2]
[339945072,1728178245516,-788.9,0.00013698,2]
[339945073,1728178245526,-500.0,0.00013698,2]
[339945074,1728178245536,-500.0,0.00013698,2]
[339945075,1728178245545,-500.0,0.00013698,2]
[339945076,1728178245555,-500.0,0.00013698,2]
[339945077,1728178245565,-500.0,0.00013698,2]
[339945078,1728178245575,-500.0,0.00013698,2]
[339945079,1728178245587,-500.0,0.00013698,2]
[339945080,1728178245597,-500.0,0.00013698,2]
[339945081,1728178245607,-631.24,0.00013698,2]
[339945082,1728178245616,-532.32,0.00013698,2]
[339945083,1728178245626,-500.0,0.00013698,2]
[339945084,1728178245636,-500.0,0.00013698,2]
[339945086,1728178245831,-500.0,0.00013698,2]
[339945088,1728178245845,-739.8,0.00013698,2]
[339945089,1728178245854,-500.0,0.00013698,2]
[339945090,1728178245865,-500.0,0.00013698,2]
[339945091,1728178245875,-500.0,0.00013698,2]
[339945092,1728178245886,-542.33,0.00013698,2]
[339945093,1728178245897,-884.87,0.00013698,2]
[339945094,1728178245907,-500.0,0.00013698,2]
[339945095,1728178245918,-549.93,0.00013698,2]
[339945096,1728178245929,-500.0,0.00013698,2]
[339945097,1728178245942,-500.0,0.00013698,2]
[339945098,1728178245953,-776.14,0.00013698,2]
[339945099,1728178245963,-500.0,0.00013698,2]
[339945100,1728178245975,-500.0,0.00013698,2]
[339945101,1728178245985,-528.12,0.00013698,2]
[339945102,1728178245995,-340.03,0.00013698,2]
[339945103,1728178246007,-681.71,0.00013698,2]
[339945104,1728178246016,-552.53,0.00013698,2]
[339945105,1728178246026,-500.0,0.00013698,2]
[339945106,1728178246036,-863.12,0.00013698,2]
[339945107,1728178246047,-782.19,0.00013698,2]
[339945108,1728178246058,-791.77,0.00013698,2]
[339945109,1728178246068,-560.46,0.00013698,2]
[339945110,1728178246079,-537.98116131,0.00013698,2]
[339945111,1728178246088,-500.0,0.00013698,2]
[339945112,1728178246098,-500.0,0.00013698,2]
[339945113,1728178246110,-500.0,0.00013698,2]
[339945114,1728178246120,-500.0,0.00013698,2]
[339945115,1728178246131,-500.0,0.00013698,2]
[339945116,1728178246143,-559.04244448,0.00013698,2]
[339945117,1728178246154,-420.27844767,0.00013698,2]
[339945118,1728178246165,-500.0,0.00013698,2]
[339945119,1728178246176,-500.0,0.00013698,2]
[339945120,1728178246187,-815.87,0.00013698,2]
[339945121,1728178246198,-544.92,0.00013698,2]
[339945122,1728178246209,-500.0,0.00013698,2]
[339945123,1728178246221,-500.0,0.00013698,2]
[339945124,1728178246231,-500.0,0.00013698,2]
[339945125,1728178246242,-500.0,0.00013698,2]
[339945126,1728178246252,-730.93,0.00013698,2]
[339945127,1728178246262,-500.0,0.00013698,2]
[339945128,1728178246271,-500.0,0.00013698,2]
[339945129,1728178246281,-500.0,0.00013698,2]
[339945130,1728178246293,-500.0,0.00013698,2]
[339945131,1728178246303,-1799.81,0.00013698,2]
[339945132,1728178246313,-500.0,0.00013698,2]
[339945133,1728178246322,-500.0,0.00013698,2]
[339945134,1728178246331,-500.0,0.00013698,2]
[339945135,1728178246344,-338.71808216,0.00013698,2]
[339945136,1728178246356,-500.0,0.00013698,2]
[339945137,1728178246365,-563.0,0.00013698,2]
[339945138,1728178246374,-500.0,0.00013698,2]
[339945139,1728178246384,-500.0,0.00013698,2]
[339945140,1728178246394,-500.0,0.00013698,2]
[339945141,1728178246403,-500.0,0.00013698,2]
[339945142,1728178246413,-500.0,0.00013698,2]
[339945143,1728178246422,-500.0,0.00013698,2]
[339945144,1728178246431,-500.0,0.00013698,2]
[339945145,1728178246441,-500.0,0.00013698,2]
[339945146,1728178246450,-500.0,0.00013698,2]
[339945147,1728178246459,-500.0,0.00013698,2]
[339945148,1728178246468,-500.0,0.00013698,2]
[339945149,1728178246477,-882.33,0.00013698,2]
[339945150,1728178246487,-500.0,0.00013698,2]
[339945151,1728178246496,-500.0,0.00013698,2]
[339945152,1728178246506,-500.0,0.00013698,2]
[339945153,1728178246515,-500.0,0.00013698,2]
[339945154,1728178246524,-500.0,0.00013698,2]
[339945155,1728178246534,-500.0,0.00013698,2]
[339945156,1728178246543,-805.57,0.00013698,2]
[339945157,1728178246553,-500.0,0.00013698,2]
[339945158,1728178246564,-500.0,0.00013698,2]
[339945159,1728178246576,-500.0,0.00013698,2]
[339945160,1728178246588,-500.0,0.00013698,2]
[339945161,1728178246600,-500.0,0.00013698,2]
[339945162,1728178246610,-500.0,0.00013698,2]
[339945163,1728178246620,-1340.07,0.00013698,2]
[339945164,1728178246630,-634.68,0.00013698,2]
[339945165,1728178246640,-500.0,0.00013698,2]
[339945166,1728178246650,-500.0,0.00013698,2]
[339945167,1728178246660,-500.0,0.00013698,2]
[339945168,1728178246671,-500.0,0.00013698,2]
[339945169,1728178246681,-503.01,0.00013698,2]
[339945170,1728178246691,-887.34,0.00013698,2]
[339945171,1728178246702,-808.26,0.00013698,2]
[339945172,1728178246712,-500.0,0.00013698,2]
[339945173,1728178246722,-500.0,0.00013698,2]
[339945174,1728178246732,-500.0,0.00013698,2]
[339945175,1728178246743,-500.0,0.00013698,2]
[339945176,1728178246753,-500.0,0.00013698,2]
[339945177,1728178246764,-500.0,0.00013698,2]
[339945178,1728178246773,-500.0,0.00013698,2]
[339945179,1728178246782,-874.85,0.00013698,2]
[339945180,1728178246791,-500.0,0.00013698,2]
[339945181,1728178246800,-521.11,0.00013698,2]
[339945182,1728178246809,-500.0,0.00013698,2]
[339945183,1728178246819,-500.0,0.00013698,2]
[339945184,1728178246828,-500.0,0.00013698,2]
[339945185,1728178246838,-500.0,0.00013698,2]
[339945186,1728178246847,-500.0,0.00013698,2]
[339945187,1728178246856,-500.0,0.00013698,2]
[339945188,1728178246866,-1882.25,0.00013698,2]
[339945189,1728178246875,-658.95,0.00013698,2]
[339945190,1728178246884,-673.06,0.00013698,2]
[339945191,1728178246893,-500.0,0.00013698,2]
[339945192,1728178246902,-500.0,0.00013698,2]
[339945193,1728178246911,-500.0,0.00013698,2]
[339945194,1728178246921,-813.26,0.00013698,2]
[339945195,1728178246931,-500.0,0.00013698,2]
[339945196,1728178246940,-1152.51,0.00013698,2]
[339945197,1728178246949,-500.0,0.00013698,2]
[339945198,1728178246958,-683.16,0.00013698,2]
[339945199,1728178246967,-500.0,0.00013698,2]
[339945200,1728178246976,-500.0,0.00013698,2]
[339945201,1728178246985,-609.58,0.00013698,2]
[339945202,1728178246995,-500.0,0.00013698,2]
[339945203,1728178247004,-637.63,0.00013698,2]
[339945204,1728178247014,-500.0,0.00013698,2]
[339945205,1728178247024,-500.0,0.00013698,2]
[339945206,1728178247033,-500.0,0.00013698,2]
[339945207,1728178247043,-626.71,0.00013698,2]
[339945208,1728178247052,-637.81,0.00013698,2]
[339945209,1728178247061,-500.0,0.00013698,2]
[339945210,1728178247070,-500.0,0.00013698,2]
[339945211,1728178247080,-500.0,0.00013698,2]
[339945212,1728178247091,-500.0,0.00013698,2]
[339945213,1728178247100,-500.0,0.00013698,2]
[339945214,1728178247111,-634.32,0.00013698,2]
[339945215,1728178247121,-500.0,0.00013698,2]
[339945216,1728178247132,-500.0,0.00013698,2]
[339945217,1728178247144,-715.81,0.00013698,2]
[339945218,1728178247153,-715.91,0.00013698,2]
[339945219,1728178247164,-500.0,0.00013698,2]
[339945220,1728178247174,-500.0,0.00013698,2]
[339945221,1728178247185,-500.0,0.00013698,2]
[339945222,1728178247197,-500.0,0.00013698,2]
[339945223,1728178247208,-500.0,0.00013698,2]
[339945224,1728178247218,-500.0,0.00013698,2]
[339945225,1728178247228,-500.0,0.00013698,2]
[339945226,1728178247240,-500.0,0.00013698,2]
[339945227,1728178247250,-776.76,0.00013698,2]
[339945228,1728178247260,-508.92,0.00013698,2]
[339945229,1728178247272,-500.0,0.00013698,2]
[339945230,1728178247284,-500.0,0.00013698,2]
[339945231,1728178247294,-500.0,0.00013698,2]
[339945232,1728178247304,-500.0,0.00013698,2]
[339945233,1728178247315,-500.0,0.00013698,2]
[339945234,1728178247327,-500.0,0.00013698,2]
[339945235,1728178247336,-500.0,0.00013698,2]
[339945236,1728178247348,-500.0,0.00013698,2]
[339945237,1728178247358,-500.0,0.00013698,2]
[339945238,1728178247367,-760.18,0.00013698,2]
[339945239,1728178247377,-676.12,0.00013698,2]
[339945240,1728178247386,-500.0,0.00013698,2]
[339945241,1728178247396,-501.5227972,0.00013698,2]
[339945242,1728178247407,-277.13375847,0.00013698,2]
[339945243,1728178247418,-500.0,0.00013698,2]
[339945244,1728178247430,-500.0,0.00013698,2]
[339945245,1728178247440,-500.0,0.00013698,2]
[339945246,1728178247453,-500.0,0.00013698,2]
[339945247,1728178247464,-25583.94,0.00013698,2]
[339945248,1728178247475,-451.81033931,0.00013698,2]
[339945249,1728178247486,-500.0,0.00013698,2]
[339945250,1728178247497,-757.38,0.00013698,2]
[339945251,1728178247507,-500.0,0.00013698,2]
[339945252,1728178247518,-550.83506309,0.00013698,2]
[339945253,1728178247528,-500.0,0.00013698,2]
[339945254,1728178247538,-500.0,0.00013698,2]
[339945255,1728178247549,-558.27,0.00013698,2]
[339945256,1728178247559,-3083.52,0.00013698,2]
[339945257,1728178247569,-4131.1,0.00013698,2]
[339945258,1728178247582,-500.0,0.00013698,2]
[339945259,1728178247595,-554.67,0.00013698,2]
[339945260,1728178247606,-329.41461417,0.00013698,2]
[339945261,1728178247618,-500.0,0.00013698,2]
[339945262,1728178247629,-500.0,0.00013698,2]
[339945263,1728178247641,-970.25,0.00013698,2]
[339945264,1728178247651,-944.57,0.00013698,2]
[339945265,1728178247662,-877.92,0.00013698,2]
[339945266,1728178247673,-500.0,0.00013698,2]
[339945267,1728178247686,-500.0,0.00013698,2]
[339945268,1728178247696,-500.0,0.00013698,2]
[339945269,1728178247707,-6065.79,0.00013698,2]
[339945270,1728178247716,-500.0,0.00013698,2]
[339945271,1728178247726,-500.0,0.00013698,2]
[339945272,1728178247736,-544.93,0.00013698,2]
[339945273,1728178247746,-500.0,0.00013698,2]
[339945274,1728178247756,-500.0,0.00013698,2]
[339945275,1728178247766,-500.0,0.00013698,2]
[339945276,1728178247777,-500.0,0.00013698,2]
[339945277,1728178247789,-500.0,0.00013698,2]
[339945278,1728178247799,-500.0,0.00013698,2]
[339945279,1728178247808,-500.0,0.00013698,2]
[339945280,1728178247818,-500.0,0.00013698,2]
[339945281,1728178247828,-500.0,0.00013698,2]
[339945282,1728178247838,-500.0,0.00013698,2]
[339945283,1728178247848,-500.0,0.00013698,2]
[339945284,1728178247857,-500.0,0.00013698,2]
[339945285,1728178247868,-500.0,0.00013698,2]
[339945286,1728178247879,-507.13568959,0.00013698,2]
[339945287,1728178247890,-500.0,0.00013698,2]
[339945288,1728178247900,-555.54784398,0.00013698,2]
[339945289,1728178247911,-992.18,0.00013698,2]
[339945290,1728178247920,-500.0,0.00013698,2]
[339945291,1728178247931,-500.0,0.00013698,2]
[339945292,1728178247942,-500.0,0.00013698,2]
[339945293,1728178247952,-500.0,0.00013698,2]
[339945294,1728178247963,-500.0,0.00013698,2]
[339945295,1728178247974,-500.0,0.00013698,2]
[339945296,1728178247984,-500.0,0.00013698,2]
[339945297,1728178247994,-500.0,0.00013698,2]
[339945298,1728178248003,-500.0,0.00013698,2]
[339945299,1728178248013,-500.0,0.00013698,2]
[339945300,1728178248024,-500.0,0.00013698,2]
[339945301,1728178248039,-500.0,0.00013698,2]
[339945302,1728178248048,-500.0,0.00013698,2]
[339945303,1728178248057,-500.0,0.00013698,2]
[339945304,1728178248066,-500.0,0.00013698,2]
[339945305,1728178248077,-500.0,0.00013698,2]
[339945306,1728178248088,-599.98671763,0.00013698,2]
[339945307,1728178248098,-500.0,0.00013698,2]
[339945308,1728178248107,-500.0,0.00013698,2]
[339945309,1728178248117,-500.0,0.00013698,2]
[339945310,1728178248127,-500.0,0.00013698,2]
[339945311,1728178248137,-500.0,0.00013698,2]
[339945312,1728178248147,-2030.99,0.00013698,2]
[339945313,1728178248158,-500.0,0.00013698,2]
[339945314,1728178248167,-500.0,0.00013698,2]
[339945315,1728178248180,-500.0,0.00013698,2]
[339945316,1728178248190,-500.0,0.00013698,2]
[339945317,1728178248201,-500.0,0.00013698,2]
[339945318,1728178248212,-500.02,0.00013698,2]
[339945319,1728178248222,-500.0,0.00013698,2]
[339945320,1728178248231,-262.68034295,0.00013698,2]
[339945321,1728178248242,-500.0,0.00013698,2]
[339945322,1728178248251,-963.32,0.00013698,2]
[339945323,1728178248261,-500.0,0.00013698,2]
[339945324,1728178248271,-688.58,0.00013698,2]
[339945325,1728178248282,-500.0,0.00013698,2]
[339945326,1728178248291,-500.0,0.00013698,2]
[339945327,1728178248301,-500.0,0.00013698,2]
[339945328,1728178248311,-599.64,0.00013698,2]
[339945329,1728178248322,-914.83,0.00013698,2]
[339945330,1728178248333,-605.92,0.00013698,2]
[339945331,1728178248343,-500.0,0.00013698,2]
[339945332,1728178248352,-500.0,0.00013698,2]
[339945333,1728178248363,-539.5,0.00013698,2]
[339945334,1728178248372,-596.11,0.00013698,2]
[339945335,1728178248382,-500.0,0.00013698,2]
[339945336,1728178248392,-503.03,0.00013698,2]
[339945337,1728178248403,-561.9,0.00013698,2]
[339945338,1728178248412,-500.0,0.00013698,2]
[339945339,1728178248422,-500.0,0.00013698,2]
[339945340,1728178248433,-500.0,0.00013698,2]
[339945341,1728178248443,-515.83,0.00013698,2]
[339945342,1728178248452,-500.0,0.00013698,2]
[339945343,1728178248462,-500.0,0.00013698,2]
[339945344,1728178248471,-534.3,0.00013698,2]
[339945345,1728178248481,-500.0,0.00013698,2]
[339945346,1728178248491,-500.0,0.00013698,2]
[339945347,1728178248500,-500.0,0.00013698,2]
[339945348,1728178248510,-500.0,0.00013698,2]
[339945349,1728178248519,-500.0,0.00013698,2]
[339945350,1728178248529,-511.99,0.00013698,2]
[339945351,1728178248539,-646.61,0.00013698,2]
[339945352,1728178248548,-500.0,0.00013698,2]
[339945353,1728178248559,-500.0,0.00013698,2]
[339945354,1728178248570,-154.46395219,0.00013698,2]
[339945355,1728178248581,-500.0,0.00013698,2]
[339945356,1728178248592,-1188.29,0.00013698,2]
[339945357,1728178248601,-3033.42,0.00013698,2]
[339945358,1728178248611,-811.63,0.00013698,2]
[339945359,1728178248620,-1415.41,0.00013698,2]
[339945360,1728178248631,-500.0,0.00013698,2]
[339945361,1728178248640,-500.0,0.00013698,2]
[339945362,1728178248652,-500.0,0.00013698,2]
[339945363,1728178248663,-2237.9,0.00013698,2]
[339945364,1728178248673,-500.0,0.00013698,2]
[339945365,1728178248683,-500.0,0.00013698,2]
[339945366,1728178248692,-500.0,0.00013698,2]
[339945367,1728178248701,-500.0,0.00013698,2]
[339945368,1728178248713,-1133.45,0.00013698,2]
[339945369,1728178248724,-500.0,0.00013698,2]
[339945370,1728178248733,-1120.78,0.00013698,2]
[339945371,1728178248743,-500.0,0.00013698,2]
[339945372,1728178248753,-343.34790887,0.00013698,2]
[339945373,1728178248764,-500.0,0.00013698,2]
[339945374,1728178248774,-621.41961343,0.00013698,2]
[339945375,1728178248783,-500.0,0.00013698,2]
[339945376,1728178248792,-1383.97,0.00013698,2]
[339945377,1728178248802,-500.0,0.00013698,2]
[339945378,1728178248811,-500.0,0.00013698,2]
[339945379,1728178248821,-1512.52,0.00013698,2]
[339945380,1728178248831,-500.0,0.00013698,2]
[339945381,1728178248844,-500.0,0.00013698,2]
[339945382,1728178248853,-1261.07,0.00013698,2]
[339945383,1728178248862,-500.0,0.00013698,2]
[339945384,1728178248871,-500.0,0.00013698,2]
[339945385,1728178248881,-500.0,0.00013698,2]
[339945386,1728178248890,-500.0,0.00013698,2]
[339945387,1728178248899,-500.0,0.00013698,2]
[339945388,1728178248908,-500.0,0.00013698,2]
[339945389,1728178248919,-152.74082099,0.00013698,2]
[339945390,1728178248929,-500.0,0.00013698,2]
[339945391,1728178248939,-500.0,0.00013698,2]
[339945392,1728178248948,-642.41,0.00013698,2]
[339945393,1728178248958,-500.0,0.00013698,2]
[339945394,1728178248967,-749.71,0.00013698,2]
[339945395,1728178248976,-500.0,0.00013698,2]
[339945396,1728178248987,-500.0,0.00013698,2]
[339945397,1728178248998,-500.0,0.00013698,2]
[339945398,1728178249008,-561.85,0.00013698,2]
[339945399,1728178249017,-500.0,0.00013698,2]
[339945400,1728178249026,-500.0,0.00013698,2]
[339945401,1728178249036,-562.84177196,0.00013698,2]
[339945402,1728178249045,-500.0,0.00013698,2]
[339945403,1728178249055,-500.0,0.00013698,2]
[339945404,1728178249064,-500.0,0.00013698,2]
[339945405,1728178249073,-500.0,0.00013698,2]
[339945406,1728178249082,-672.79,0.00013698,2]
[339945407,1728178249092,-1070.9,0.00013698,2]
[339945408,1728178249102,-500.0,0.00013698,2]
[339945409,1728178249111,-500.0,0.00013698,2]
[339945410,1728178249120,-500.0,0.00013698,2]
[339945411,1728178249131,-500.0,0.00013698,2]
[339945412,1728178249289,-673.16,0.00013698,2]
[339945413,1728178249299,-396.2307833,0.00013698,2]
[339945414,1728178249308,-500.0,0.00013698,2]
[339945415,1728178249318,-559.58,0.00013698,2]
[339945416,1728178249327,-1002.14,0.00013698,2]
[339945417,1728178249337,-500.0,0.00013698,2]
[339945418,1728178249347,-618.40642688,0.00013698,2]
[339945419,1728178249357,-500.0,0.00013698,2]
[339945420,1728178249367,-500.0,0.00013698,2]
[339945421,1728178249377,-500.0,0.00013698,2]
[339945422,1728178249387,-559.88,0.00013698,2]
[339945423,1728178249396,-1030.87,0.00013698,2]
[339945424,1728178249407,-589.19,0.00013698,2]
[339945425,1728178249417,-500.0,0.00013698,2]
[339945426,1728178249427,-500.0,0.00013698,2]
[339945427,1728178249437,-552.8,0.00013698,2]
[339945428,1728178249447,-500.0,0.00013698,2]
[339945429,1728178249457,-500.0,0.00013698,2]
[339945430,1728178249467,-500.0,0.00013698,2]
[339945431,1728178249478,-500.0,0.00013698,2]
[339945432,1728178249488,-1482.58,0.00013698,2]
[339945433,1728178249498,-701.61,0.00013698,2]
[339945434,1728178249508,-500.0,0.00013698,2]
[339945435,1728178249519,-5092.186386,0.00013699,2]
[339945436,1728178249528,-415.711036,0.00013699,2]
[339945437,1728178249538,-166.666666,0.00013699,2]
[339945438,1728178249548,-1667.6016924,0.00013705,2]
[339945439,1728178249558,-600.0,0.00013719,2]
[339945440,1728178249568,-13964.2692749,0.00013744,2]
[339945441,1728178249577,-383.56516565,0.0001375,2]
[339945442,1728178249590,-1000.0,0.00013752,2]
[339945443,1728178249600,-1000.0,0.00013764,2]
[339945444,1728178249610,-150.164,0.00013768,2]
[339945445,1728178249619,-150.0,0.00013768,2]
[339945446,1728178249629,-150.0,0.00013768,2]
[339945447,1728178249638,-150.048,0.00013768,2]
[339945448,1728178249648,-150.0,0.00013768,2]
[339945449,1728178249660,-1218.0,0.00013768,2]
[339945450,1728178249671,-277.396,0.00013768,2]
[339945451,1728178249683,-150.36,0.00013768,2]
[339945452,1728178249695,-239.0,0.0001378,2]
[339945453,1728178249707,-1000.0,0.00013796,2]
[339945454,1728178249718,-999.90001,0.00013847,2]
[339945455,1728178249729,-600.0,0.00013859,2]
[339945456,1728178249741,-1000.0,0.00013876,2]
[339945457,1728178249753,-300.0,0.000139,4]
[339945458,1728178249765,-13964.2692749,0.00013942,2]
[339945459,1728178249777,-27928.5385498,0.00013952,2]
[339945460,1728178249788,-83785.6156493,0.00013962,2]
[339945461,1728178249800,-1000.0,0.00013963,2]
[339945462,1728178249812,-500.0,0.00013972,2]
[339945463,1728178249824,-500.0,0.00013972,2]
[339945464,1728178249835,-500.0,0.00013972,2]
[339945465,1728178249846,-500.0,0.00013972,2]
[339945466,1728178249858,-500.0,0.00013972,2]
[339945467,1728178249869,-500.0,0.00013972,2]
[339945468,1728178249879,-500.0,0.00013972,2]
[339945469,1728178249888,-500.0,0.00013972,2]
[339945470,1728178249897,-500.0,0.00013972,2]
[339945471,1728178249908,-500.0,0.00013972,2]
[339945472,1728178249919,-500.0,0.00013972,2]
[339945473,1728178249930,-500.0,0.00013972,2]
[339945474,1728178249940,-151.0,0.00013972,2]
[339945475,1728178249952,-500.0,0.00013972,2]